Entity,Date ,Expense Type,Expense Area,Supplier,Transaction Number, Amount (�) 
South West Yorkshire NHS Foundation Trust,11-Jul-22,Rent,Calderdale,Calderdale & Huddersfield NHS Foundation Trust,4710176194,411028.69
South West Yorkshire NHS Foundation Trust,12-Aug-22,Rent,Calderdale,Calderdale & Huddersfield NHS Foundation Trust,4710176362,394271.08
South West Yorkshire NHS Foundation Trust,01-Oct-22,Purchase of Healthcare,AS Collaborative,Waterloo Manor Ltd,HO NHS LS 265,371607.54
South West Yorkshire NHS Foundation Trust,01-Oct-22,Purchase of Healthcare,AS Collaborative,Partnerships In Care Ltd,D510007333,324857.22
South West Yorkshire NHS Foundation Trust,30-Sep-22,Purchase of Healthcare,AS Collaborative,Sheffield Health & Social Care NHS Foundation Trust,2100118585,293365
South West Yorkshire NHS Foundation Trust,10-Aug-22,Purchase of Healthcare,AS Collaborative,Cygnet Health Care Ltd,SYSEC003INV,288559.74
South West Yorkshire NHS Foundation Trust,14-Jul-22,Purchase of Healthcare,AS Collaborative,Cygnet Health Care Ltd,SYSEC002INV,258216.63
South West Yorkshire NHS Foundation Trust,25-Oct-22,Purchase of Healthcare,AS Collaborative,Leeds & York Partnership NHS Foundation Trust,998150,197224.26
South West Yorkshire NHS Foundation Trust,01-Sep-22,Purchase of Healthcare,AS Collaborative,Cygnet Health Care Ltd,CYGSYS02,185000
South West Yorkshire NHS Foundation Trust,01-Oct-22,Purchase of Healthcare,AS Collaborative,Partnerships In Care Ltd,D510007327,155396.62
South West Yorkshire NHS Foundation Trust,03-Oct-22,Purchase of Healthcare,AS Collaborative,Rotherham Doncaster & South Humber Mental Health NHS Foundation Trust,0000092949,134623.94
South West Yorkshire NHS Foundation Trust,30-Sep-22,Drugs,Trustwide,Aventis Pharma T/A Sanofi,921214701,119394
South West Yorkshire NHS Foundation Trust,21-Sep-22,Purchase of Healthcare,AS Collaborative,St Andrews Healthcare,90114000,106214.19
South West Yorkshire NHS Foundation Trust,27-Sep-22,Staff Recharge,Kirklees,Kirklees Council,8607473359,90500
South West Yorkshire NHS Foundation Trust,04-Oct-22,IT Services,Trustwide,Daisy Corporate Services,3I498018,90250
South West Yorkshire NHS Foundation Trust,21-Sep-22,Purchase of Healthcare,AS Collaborative,St Andrews Healthcare,90113999,89799.09
South West Yorkshire NHS Foundation Trust,04-Oct-22,Purchase of Healthcare,AS Collaborative,Rotherham Doncaster & South Humber Mental Health NHS Foundation Trust,0000092980,84364.5
South West Yorkshire NHS Foundation Trust,07-Oct-22,NHS Recharge,Calderdale,Calderdale & Huddersfield NHS Foundation Trust,4710176667,82239
South West Yorkshire NHS Foundation Trust,30-Sep-22,Purchase of Healthcare,AS Collaborative,Partnerships In Care Ltd,D5100072301,82234.62
South West Yorkshire NHS Foundation Trust,12-Apr-22,Purchase of Healthcare,AS Collaborative,Partnerships In Care Ltd,D510006778EPC,74976
South West Yorkshire NHS Foundation Trust,12-Apr-22,Purchase of Healthcare,AS Collaborative,Partnerships In Care Ltd,D510006781EPC,74976
South West Yorkshire NHS Foundation Trust,22-Sep-22,Drugs,Trustwide,Bradford Teaching Hospitals NHS Foundation Trust,322080,71122.22
South West Yorkshire NHS Foundation Trust,22-Sep-22,Drugs,Trustwide,Bradford Teaching Hospitals NHS Foundation Trust,322079,67134.37
South West Yorkshire NHS Foundation Trust,31-Aug-22,Drugs,Trustwide,Lloyds Pharmacy Ltd,110052,61737.9
South West Yorkshire NHS Foundation Trust,03-Oct-22,Purchase of Healthcare,AS Collaborative,Mersey Care NHS Foundation Trust,72483842,44641
South West Yorkshire NHS Foundation Trust,30-Sep-22,Purchase of Healthcare,Forensics,Sheffield Childrens NHS Foundation Trust,2100222271,42350
South West Yorkshire NHS Foundation Trust,12-Sep-22,Mobile Phones,Trustwide,Vodafone Ltd,102264909,40949.37
South West Yorkshire NHS Foundation Trust,30-Sep-22,Purchase of Healthcare,Trustwide,Partnerships In Care Ltd,D5100072221,38246.46
South West Yorkshire NHS Foundation Trust,20-Sep-22,Drugs,Trustwide,NHS Business Services Authority,1000074582,37770.62
South West Yorkshire NHS Foundation Trust,30-Sep-22,Purchase of Healthcare,Trustwide,Nouvita Ltd,9137,36720
South West Yorkshire NHS Foundation Trust,05-Oct-22,Computer Hardware,Trustwide,Dell Corporation Ltd,7402855321,36115.08
South West Yorkshire NHS Foundation Trust,03-Oct-22,Purchase of Healthcare,Trustwide,Touchstone-Leeds,SINV20220250,34740.5
South West Yorkshire NHS Foundation Trust,16-Sep-22,Purchase of Healthcare,Trustwide,Cheswold Park Hospital,4538,34522.9
South West Yorkshire NHS Foundation Trust,04-Oct-22,Utilities,Trustwide,Edf Energy Customers Ltd,000013398408,33813.69
South West Yorkshire NHS Foundation Trust,25-Oct-22,Staff Recharge,Trustwide,Leeds & York Partnership NHS Foundation Trust,998151,32870.71
South West Yorkshire NHS Foundation Trust,18-Jul-22,MFD Rental,Trustwide,Annodata Ltd,1283918,30626.83
South West Yorkshire NHS Foundation Trust,17-Oct-22,MFD Rental,Trustwide,Annodata Ltd,1293848,30626.83
South West Yorkshire NHS Foundation Trust,17-Aug-22,Recruitment Campaign,Trustwide,Just R Ltd,547A,30000
South West Yorkshire NHS Foundation Trust,30-Sep-22,Purchase of Healthcare,Trustwide,Nouvita Ltd,9145,29567.25
South West Yorkshire NHS Foundation Trust,31-Aug-22,Purchase of Healthcare,Trustwide,Cygnet Health Care Ltd,HEX0249267,29109
South West Yorkshire NHS Foundation Trust,04-Oct-22,Staff Recharge,Barnsley,Barnsley Hospital NHS Foundation Trust,6026056,28725.62
South West Yorkshire NHS Foundation Trust,31-Aug-22,Purchase of Healthcare,Trustwide,Cygnet Health Care Ltd,WKE0249312,26691
South West Yorkshire NHS Foundation Trust,30-Sep-22,Purchase of Healthcare,Trustwide,Cygnet Health Care Ltd,WKE0256093,25830
South West Yorkshire NHS Foundation Trust,30-Jun-22,Purchase of Healthcare,Trustwide,Cygnet Health Care Ltd,WKE0240465,25830
South West Yorkshire NHS Foundation Trust,17-Sep-22,Purchase of Healthcare,Barnsley,Barnsley Metropolitan Borough Council,9000301254,25000
